[Event "CCT Julius Baer-D3 2024"]
[Site "Online"]
[Date "2024.09.28"]
[Round "52"]
[White "Svane, Rasmus"]
[Black "Hakobyan, Aram"]
[Result "0-1"]
[ECO "E06"]
[WhiteElo "2629"]
[BlackElo "2617"]
[Annotator "TA"]
[PlyCount "94"]
[EventDate "2024.09.25"]
[EventType "swiss"]
[EventCountry "NET"]
[SourceTitle "playchess.com"]
[Source "ChessBase"]
[SourceQuality "1"]
[TimeControl "600+2"]

{[%evp 10,94,29,0,28,22,38,-41,-39,-37,8,10,12,15,9,0,0,0,27,12,39,50,63,41,33,28,25,-8,0,0,0,-14,-7,-70,-68,-89,-81,-131,-93,-100,-25,-144,-164,-165,-141,-492,-466,-1116,-645,-1357,-1330,-1426,-1398,-1349,-1308,-1918,-1974,-1693,-973,-1025,-1025,-999,-879,-1055,-1055,-1081,-1090,-1121,-996,-981,-967,-1278,-1273,-1209,-1149,-1291,-1011,-1156,-1066,-4814,-2829,-29969,-6318,-29963,-29968,-5941,-5702]} 1. c4 {[%emt 0:00:02]} Nf6 {[%emt 0:00:05]} 2. Nf3 {[%emt 0:00:04]} e6 {[%emt 0:00:12]} 3. g3 {[%emt 0:00:01]} d5 {[%emt 0:00:04]} 4. Bg2 {[%emt 0:00:00]} Be7 {[%emt 0:00:03]} 5. d4 {[%emt 0:00:02]} O-O {[%emt 0:00:03]} 6. Nc3 {[%emt 0:00:02]} Nc6 {[%emt 0:00:14]} 7. b3 {[%emt 0:00:17]} Bb4 {[%emt 0:00:04]} 8. Bd2 {[%emt 0:00:01]} (8. Bb2 $14) 8... dxc4 $15 {[%emt 0:00:35] Black is slightly better.} 9. e3 {[%emt 0:00:41]} Nd5 {[%emt 0:00:50]} 10. Nxd5 {[%emt 0:00:46]} exd5 {[%emt 0:00:12]} 11. bxc4 {[%emt 0:00:04]} dxc4 {[%emt 0:00:02] [#] And now ...c3 would win.} 12. Bxb4 {[%emt 0:01:12]} Nxb4 {[%emt 0:00:03]} 13. O-O {[%emt 0:00:01]} c6 {[%emt 0:00:38]} 14. Ne5 {[%emt 0:00:32][%mdl 1024] White has compensation.} c3 {[%emt 0:00:53] Repels Qd2} (14... Be6 $5) 15. Qb3 {[%emt 0:00:12][%csl LRb4,LRc3]} Nd5 {[%emt 0:00:02]} 16. e4 {[%emt 0:00:02]} Nc7 {[%emt 0:00:25]} 17. d5 {[%emt 0:01:20]} (17. Qxc3 Nb5 18. Qb4 a5 $17 (18... Nxd4 19. Rad1 $14) (18... Qxd4 $2 19. Qe7 $17)) 17... Re8 {[%emt 0:03:20]} 18. f4 {[%emt 0:00:23]} Nb5 {[%emt 0:00:37]} 19. Kh1 {[%emt 0:00:39]} Qa5 $1 {[%emt 0:00:07]} 20. Rfd1 {[%emt 0:00:17] Inhibits Nd4.} Qa3 {[%emt 0:00:26]} (20... cxd5 21. Rxd5 a6 22. Rxb5 (22. Nxf7 Be6 $14) 22... Qxb5 23. Qxf7+ Kh8 24. a4 $14) 21. Qc4 {[%emt 0:01:34]} (21. dxc6 $11 Qxb3 22. axb3) 21... a6 {[%emt 0:00:20] Hoping for ...f6.} 22. dxc6 {[%emt 0:01:05]} Be6 {[%emt 0:00:01]} 23. Qe2 {[%emt 0:00:07]} ({White should play} 23. Qd3) 23... bxc6 {[%emt 0:00:07]} 24. f5 {[%emt 0:00:08]} Qb2 {[%emt 0:00:20]} (24... f6 $1 $17 {Strongly threatening ...Qb2.} 25. fxe6 fxe5) 25. Qf1 {[%emt 0:00:49]} (25. Qh5 $11 {remains equal.} c2 (25... Bxa2 26. Nd3 $11) 26. fxe6 cxd1=Q+ (26... cxd1=B 27. exf7+ Kf8 28. fxe8=Q+ Rxe8 29. Qf7#) (26... cxd1=R+ 27. Rxd1 fxe6 28. Qf7+ Kh8 29. Qh5 $11) 27. Rxd1) 25... Bxa2 $17 {[%emt 0:00:21]} 26. Nd3 {[%emt 0:00:02]} Bc4 {[%emt 0:00:01]} 27. e5 $2 {[%emt 0:00:17][%mdl 8192] White does not recover from this.} (27. Nxb2 $17 Bxf1 28. Rxf1 cxb2 29. Rab1) 27... Rad8 $19 {[%emt 0:00:17]} 28. Rab1 {[%emt 0:00:08]} (28. Nxb2 $142 Bxf1 29. Rxf1 cxb2 30. Rxa6) 28... Qa3 {[%emt 0:00:10]} 29. e6 {[%emt 0:00:01]} c2 {[%emt 0:00:04]} 30. exf7+ {[%emt 0:00:05]} Bxf7 {[%emt 0:00:00]} 31. Ra1 {[%emt 0:00:01]} cxd1=Q {[%emt 0:00:02]} 32. Rxd1 {[%emt 0:00:01]} Nc3 {[%emt 0:00:04]} 33. Ra1 {[%emt 0:00:02]} Qd6 {[%emt 0:00:01]} 34. Nf4 {[%emt 0:00:02] [#]} Qd1 $3 {[%emt 0:00:06]} 35. Bxc6 {[%emt 0:00:08]} (35. h4 Qxf1+) 35... Qxf1+ {[%emt 0:00:02]} 36. Rxf1 {[%emt 0:00:00]} Re5 {[%emt 0:00:03]} 37. Kg2 {[%emt 0:00:02]} Rxf5 {[%emt 0:00:02]} 38. Rc1 {[%emt 0:00:01]} Nd5 {[%emt 0:00:03]} 39. Bxd5 {[%emt 0:00:07]} Bxd5+ {[%emt 0:00:01]} 40. Kh3 {[%emt 0:00:00]} Bf7 {[%emt 0:00:00] White must now prevent ...g5.} 41. Kg4 {[%emt 0:00:01]} Rf6 {[%emt 0:00:01]} 42. h4 {[%emt 0:00:01]} Rf8 {[%emt 0:00:01]} 43. Rc7 {[%emt 0:00:02]} h6 {[%emt 0:00:01]} 44. h5 {[%emt 0:00:01]} Ra8 {[%emt 0:00:03] Threatens to win with ...a5.} 45. Re7 {[%emt 0:00:02]} a5 {[%emt 0:00:01] ( -> ...a4)} 46. Re3 {[%emt 0:00:03]} a4 {[%emt 0:00:01]} 47. Ra3 {[%emt 0:00:00]} Rb6 {[%emt 0:00:01] Weighted Error Value: White=0.68/Black=0.35.  Loses game:     	White=1     	---        Mistake:       	White=5     	Black=1      Inaccurate:     	White=2     	Black=4      OK:         	White=9     	Black=7      Best:        	White=1     	Black=3      Strong:       	---       	Black=1} 0-1

[Event "CCT Julius Baer-D3 2024"]
[Site "Online"]
[Date "2024.09.28"]
[Round "52"]
[White "Santos Latasa, Jaime"]
[Black "Bosiocic, Marin"]
[Result "0-1"]
[ECO "B15"]
[WhiteElo "2624"]
[BlackElo "2555"]
[Annotator "TA"]
[PlyCount "42"]
[EventDate "2024.09.25"]
[EventType "swiss"]
[EventCountry "NET"]
[SourceTitle "playchess.com"]
[Source "ChessBase"]
[SourceQuality "1"]
[TimeControl "600+2"]

{[%evp 15,42,25,19,13,16,20,24,44,68,33,47,24,28,0,0,-2,-20,-203,-207,-883,-864,-1143,-1139,-1250,-1227,-1227,-1240,-1694,-1683]} 1. e4 {[%emt 0:00:03]} c6 {[%emt 0:00:04]} 2. d4 {[%emt 0:00:06]} d5 {[%emt 0:00:01]} 3. Nd2 {[%emt 0:00:02]} dxe4 {[%emt 0:00:01]} 4. Nxe4 {[%emt 0:00:01]} Nf6 {[%emt 0:00:01]} 5. Nxf6+ {[%emt 0:00:01]} exf6 {[%emt 0:00:01]} 6. c3 {[%emt 0:00:00]} Bd6 {[%emt 0:00:02]} 7. Bd3 {[%emt 0:00:01]} O-O {[%emt 0:00:02]} 8. Ne2 {[%emt 0:00:02]} Re8 {[%emt 0:00:01]} 9. O-O {[%emt 0:00:03]} Nd7 {[%emt 0:00:08]} 10. Ng3 {[%emt 0:00:04]} Nf8 {[%emt 0:00:04]} 11. f4 {[%emt 0:00:14][%cal Bf2f4,Bf4f5][%mdl 32] Weiß hat minimalen Vorteil.} Bc7 {[%emt 0:00:27]} 12. Bc2 {[%emt 0:00:38]} Be6 {[%emt 0:00:14]} 13. f5 {[%emt 0:00:13]} Bc4 {[%emt 0:00:04][%cal Oc7g3] ...Bxg3! wäre nun fies.} 14. Rf2 {[%emt 0:00:04]} c5 {[%emt 0:00:36]} 15. b3 {[%emt 0:00:04]} (15. dxc5 $2 {verliert.} Qxd1+ 16. Bxd1 Bxg3 17. hxg3 Re1+ 18. Kh2 Rxd1 $19) 15... Ba6 {[%emt 0:00:04]} 16. Nh5 $2 {[%emt 0:00:31] Der Zug kostet die Partie für Weiß.} (16. d5 $11 {und Weiss ist OK.}) 16... cxd4 $19 {[%emt 0:00:06]} 17. cxd4 $2 {[%emt 0:00:03] [#]} (17. c4 d3 18. Bxd3) 17... Qxd4 $3 {[%emt 0:00:26][%mdl 512] Schwarz steht klar auf Gewinn.} 18. Bh6 {[%emt 0:01:03]} (18. Bf4 Bb6) 18... Bb6 {[%emt 0:00:37]} 19. Bxg7 {[%emt 0:00:19]} Qxf2+ {[%emt 0:00:02]} 20. Kh1 {[%emt 0:00:02] [#]} Nd7 $1 {[%emt 0:00:14]} 21. Bxf6 {[%emt 0:00:06]} (21. Bh6 Re2) 21... Re2 {[%emt 0:00:06] Gewichteter Fehlerwert: Weiß=1.71/Schwarz=0.02 (makellos) .  Verlustzug:     	Weiß=1     	---        Fehler:       	Weiß=1     	---        Ungenau:       	Weiß=3     	---        OK:         	---       	Schwarz=4     Bester:       	---       	Schwarz=1     Brilliant:      	---       	Schwarz=1} 0-1

[Event "CCT Julius Baer-D3 2024"]
[Site "Online"]
[Date "2024.09.28"]
[Round "52"]
[White "Hakobyan, Aram"]
[Black "Svane, Rasmus"]
[Result "1-0"]
[ECO "C67"]
[WhiteElo "2617"]
[BlackElo "2629"]
[Annotator "TA"]
[PlyCount "69"]
[EventDate "2024.09.25"]
[EventType "swiss"]
[EventCountry "NET"]
[SourceTitle "playchess.com"]
[Source "ChessBase"]
[SourceQuality "1"]
[TimeControl "600+2"]

{[%evp 16,69,-16,-1,0,-11,0,0,0,12,113,116,114,125,120,114,159,156,165,163,168,172,157,157,158,170,180,166,189,173,179,181,175,162,154,157,179,165,302,167,255,260,269,219,842,837,1143,1107,1107,1093,29956,1037,29983,5518,29991,29992]} 1. e4 {[%emt 0:00:02]} e5 {[%emt 0:00:06]} 2. Nf3 {[%emt 0:00:04]} Nc6 {[%emt 0:00:03]} 3. Bb5 {[%emt 0:00:03]} Nf6 {[%emt 0:00:03]} 4. O-O {[%emt 0:00:11][%cal Bh1f1,Bf1e1,Be1e5][%mdl 32]} Nxe4 {[%emt 0:00:03]} 5. Re1 {[%emt 0:00:04]} Nd6 {[%emt 0:00:02][%cal Be4d6,Bd6e8,Be8f6][%mdl 32]} 6. Nxe5 {[%emt 0:00:03]} Be7 {[%emt 0:00:03]} 7. Bd3 {[%emt 0:00:02]} Nxe5 {[%emt 0:00:21]} 8. Rxe5 {[%emt 0:00:03]} O-O {[%emt 0:00:08]} 9. Nc3 {[%emt 0:00:02][%cal Bb1c3,Bc3e4,Be4g5][%mdl 32]} c6 {[%emt 0:01:34]} 10. Re1 {[%emt 0:00:07]} Ne8 {[%emt 0:00:58]} 11. Qe2 {[%emt 0:00:03]} Bf6 {[%emt 0:00:08] Die Stellung ist ausgeglichen.} 12. Ne4 {[%emt 0:00:05]} Be5 {[%emt 0:01:30]} (12... Bd4 $11) 13. Qh5 $16 {[%emt 0:01:43]} f5 {[%emt 0:01:39] [#]} 14. Ng5 $40 {[%emt 0:00:03][%mdl 128] Weiss geht auf den König.} Nf6 {[%emt 0:00:43]} 15. Qh4 {[%emt 0:01:14]} d6 {[%emt 0:00:11]} 16. Bc4+ {[%emt 0:00:06]} d5 {[%emt 0:00:02]} 17. Rxe5 {[%emt 0:00:03]} dxc4 {[%emt 0:00:01]} 18. Qxc4+ {[%emt 0:00:03]} Nd5 {[%emt 0:00:01]} 19. d4 {[%emt 0:00:09] Weiß hat aktiveres Spiel. Die schwarzen Türme stehen passiv.} h6 {[%emt 0:00:38] Schwarz hat schwache schwarze Felder} 20. Nf3 {[%emt 0:00:02]} Qf6 {[%emt 0:00:01]} 21. Qe2 {[%emt 0:00:44]} b5 {[%emt 0:00:04][%cal Bb7b5,Bb5b4][%mdl 32]} 22. Bd2 {[%emt 0:00:27]} Bd7 {[%emt 0:00:03]} 23. a4 {[%emt 0:00:09]} a6 {[%emt 0:00:08]} 24. b3 {[%emt 0:00:18]} b4 {[%emt 0:00:10]} 25. a5 {[%emt 0:00:09]} f4 {[%emt 0:00:25]} 26. Qc4 {[%emt 0:00:41]} Bg4 {[%emt 0:00:42]} (26... Rab8 {ist eine bessere Verteidigung.} 27. Ra4 (27. Qxa6 Rb5 $16) 27... Qd6) 27. Rae1 {[%emt 0:00:40]} (27. Bxb4 $142 Bxf3 28. gxf3 (28. Bxf8 Qg6 $11)) 27... Bxf3 {[%emt 0:00:03]} (27... Qg6 {ist wohl besser.} 28. Nh4 Qd6) 28. gxf3 $18 {[%emt 0:00:01]} Qg6+ {[%emt 0:00:25]} 29. Kh1 {[%emt 0:00:03]} Rf6 $2 {[%emt 0:00:01] [#]} (29... Kh8 30. h3 (30. Bxb4 Nxb4 31. Qxb4 Qxc2 $16) 30... Kh7) 30. Rxd5 {[%emt 0:00:26]} cxd5 {[%emt 0:00:08]} 31. Qxd5+ {[%emt 0:00:01]} Kh7 {[%emt 0:00:04]} 32. Qxa8 {[%emt 0:00:01]} Rc6 {[%emt 0:00:08]} 33. Bxf4 {[%emt 0:00:38]} (33. Re8 $142 Qxe8 34. Qxe8 Rc7 35. Bxf4 (35. Qe4+ g6 $18) 35... Rc3 36. Bd6 (36. Qe4+ Kh8 37. Be5 Kg8 38. Qb7 Kf8 39. Bxg7+ Ke8 40. Bf6 Rc7 41. Qxc7 Kf8 42. Qg7+ Ke8 43. Qe7#) 36... h5 37. Be5 (37. Bxb4 Rc7 38. d5 Kh6 39. d6 Rxc2 40. Qe6+ Kh7 41. Qe4+ g6 42. Qxc2 h4) 37... Rxf3 38. Qxh5+ Kg8 39. Qxf3) 33... Qxc2 {[%emt 0:00:08]} 34. Rc1 {[%emt 0:00:13]} (34. Re8 $142 Kg6 35. Kg2 Rf6 36. Be5 Kh5 37. Qe4 Qxe4 38. fxe4 Rf7 39. d5) 34... Qxf2 {[%emt 0:00:13]} 35. Qxc6 {[%emt 0:00:02] Schwarz wurde aus der Eröffnung heraus überspielt.   Gewichteter Fehlerwert: Weiß=0.16 (sehr präzise) /Schwarz=0.94.  Fehler:       	Weiß=1     	Schwarz=4     Ungenau:       	---       	Schwarz=2     OK:         	Weiß=10    	Schwarz=6     Bester:       	Weiß=2     	Schwarz=3} (35. Rxc6 $2 Qf1#) 1-0

[Event "CCT Julius Baer-D3 2024"]
[Site "Online"]
[Date "2024.09.28"]
[Round "52"]
[White "Kamsky, Gata"]
[Black "Martirosyan, Haik M."]
[Result "1/2-1/2"]
[ECO "D00"]
[WhiteElo "2609"]
[BlackElo "2667"]
[Annotator "RC"]
[PlyCount "162"]
[EventDate "2024.09.25"]
[EventType "swiss"]
[EventCountry "NET"]
[SourceTitle "playchess.com"]
[Source "ChessBase"]
[SourceQuality "1"]
[TimeControl "600+2"]

1. d4 {[%emt 0:00:02]} Nf6 {[%emt 0:00:03]} 2. Bf4 {[%emt 0:00:02]} d5 {[%emt 0:00:02]} 3. e3 {[%emt 0:00:01]} c5 {[%emt 0:00:01]} 4. c3 {[%emt 0:00:01]} Nc6 {[%emt 0:00:02]} 5. Nd2 {[%emt 0:00:00]} cxd4 {[%emt 0:00:04]} 6. exd4 {[%emt 0:00:01]} Bf5 {[%emt 0:00:06]} 7. Ngf3 {[%emt 0:00:02]} e6 {[%emt 0:00:02]} 8. Bb5 {[%emt 0:00:04]} Nd7 {[%emt 0:00:21]} 9. O-O {[%emt 0:00:36]} Be7 {[%emt 0:00:03]} 10. Re1 {[%emt 0:00:03]} O-O {[%emt 0:00:01]} 11. a4 {[%emt 0:00:03]} Rc8 {[%emt 0:00:08]} 12. h3 {[%emt 0:00:15]} Qb6 {[%emt 0:00:17]} 13. Nb3 {[%emt 0:00:10]} a6 {[%emt 0:00:12]} 14. Bf1 {[%emt 0:00:02]} h6 {[%emt 0:00:08]} 15. a5 {[%emt 0:00:19]} Qd8 {[%emt 0:00:01]} 16. Qd2 {[%emt 0:01:28]} Re8 {[%emt 0:00:04]} 17. Ne5 {[%emt 0:00:11]} Ndxe5 {[%emt 0:00:06]} 18. dxe5 {[%emt 0:00:02]} Bg6 {[%emt 0:00:16]} 19. Ra4 {[%emt 0:00:21]} Qd7 {[%emt 0:00:16]} 20. Raa1 {[%emt 0:00:04]} Red8 {[%emt 0:00:04]} 21. Red1 {[%emt 0:00:28]} Qc7 {[%emt 0:00:17]} 22. Qe2 {[%emt 0:00:10]} Rd7 {[%emt 0:00:10]} 23. Bg3 {[%emt 0:00:06]} Qd8 {[%emt 0:00:16]} 24. Ra4 {[%emt 0:00:09]} Bf5 {[%emt 0:00:19]} 25. Rd2 {[%emt 0:00:14]} Bg5 {[%emt 0:00:07]} 26. f4 {[%emt 0:00:02]} Bh4 {[%emt 0:00:14]} 27. Bxh4 {[%emt 0:00:02]} Qxh4 {[%emt 0:00:00]} 28. Qf2 {[%emt 0:00:05]} Qxf2+ {[%emt 0:00:22]} 29. Kxf2 {[%emt 0:00:01]} Rdc7 {[%emt 0:00:05]} 30. Nd4 {[%emt 0:00:14]} Ne7 {[%emt 0:00:08]} 31. Rb4 {[%emt 0:00:15]} Be4 {[%emt 0:00:01]} 32. g3 {[%emt 0:00:24]} Rd7 {[%emt 0:00:08]} 33. Rb6 {[%emt 0:00:28]} Kf8 {[%emt 0:00:24]} 34. Be2 {[%emt 0:00:02]} Rc5 {[%emt 0:00:05]} 35. Nb3 {[%emt 0:00:02]} Rcc7 {[%emt 0:00:00]} 36. Nd4 {[%emt 0:00:08]} Rc5 {[%emt 0:00:01]} 37. Nb3 {[%emt 0:00:01]} Rcc7 {[%emt 0:00:01]} 38. h4 {[%emt 0:00:06]} Nc8 {[%emt 0:00:31]} 39. Rb4 {[%emt 0:00:03]} Ne7 {[%emt 0:00:03]} 40. h5 {[%emt 0:00:04]} Ke8 {[%emt 0:00:06]} 41. Nd4 {[%emt 0:00:16]} Rc5 {[%emt 0:00:03]} 42. Ra4 {[%emt 0:00:03]} Kd8 {[%emt 0:00:13]} 43. g4 {[%emt 0:00:03]} Rc8 {[%emt 0:00:23]} 44. Ke3 {[%emt 0:00:03]} Bh7 {[%emt 0:00:09]} 45. Ra1 {[%emt 0:00:06]} Nc6 {[%emt 0:00:08]} 46. Nxc6+ {[%emt 0:00:04]} Rxc6 {[%emt 0:00:01]} 47. Rd4 {[%emt 0:00:03]} Rc5 {[%emt 0:00:07]} 48. Rb4 {[%emt 0:00:08]} Kc7 {[%emt 0:00:28]} 49. Kd4 {[%emt 0:00:02]} Rc6 {[%emt 0:00:01]} 50. Ra3 {[%emt 0:00:05]} Bc2 {[%emt 0:00:04]} 51. Ra1 {[%emt 0:00:04]} Rd8 {[%emt 0:00:11]} 52. Rg1 {[%emt 0:00:07]} Rf8 {[%emt 0:01:00]} 53. Rc1 {[%emt 0:00:17]} Bh7 {[%emt 0:00:05]} 54. Rf1 {[%emt 0:00:19]} f6 {[%emt 0:00:21]} 55. Ra4 {[%emt 0:00:40]} Kb8 {[%emt 0:00:27]} 56. Raa1 {[%emt 0:00:04]} Rc7 {[%emt 0:00:04]} 57. Rae1 {[%emt 0:00:13]} Be4 {[%emt 0:00:15]} 58. exf6 {[%emt 0:00:29]} gxf6 {[%emt 0:00:12]} 59. Bd3 {[%emt 0:00:03]} Bxd3 {[%emt 0:00:39]} 60. Kxd3 {[%emt 0:00:02]} Rg7 {[%emt 0:00:16]} 61. Rg1 {[%emt 0:00:12]} Re8 {[%emt 0:00:06]} 62. Kd4 {[%emt 0:00:15]} Kc7 {[%emt 0:00:06]} 63. g5 {[%emt 0:00:30]} fxg5 {[%emt 0:00:14]} 64. fxg5 {[%emt 0:00:02]} hxg5 {[%emt 0:00:01]} 65. Ke5 {[%emt 0:00:05]} Rh8 {[%emt 0:00:05]} 66. Kf6 {[%emt 0:00:16]} Rgg8 {[%emt 0:00:15]} 67. Rxe6 {[%emt 0:00:10]} Rxh5 {[%emt 0:00:06]} 68. Re7+ {[%emt 0:00:14]} Kc6 {[%emt 0:00:05]} 69. Re6+ {[%emt 0:00:09]} Kc7 {[%emt 0:00:04]} 70. Re7+ {[%emt 0:00:01]} Kb8 {[%emt 0:00:00]} 71. Rg4 {[%emt 0:00:04]} Rh4 {[%emt 0:00:05]} 72. Rxg5 {[%emt 0:00:02]} Rf4+ {[%emt 0:00:11]} 73. Ke5 {[%emt 0:00:06]} Rxg5+ {[%emt 0:00:08]} 74. Kxf4 {[%emt 0:00:01]} Rg2 {[%emt 0:00:01]} 75. b4 {[%emt 0:00:02]} Rc2 {[%emt 0:00:01]} 76. Ke5 {[%emt 0:00:04]} Rxc3 {[%emt 0:00:10]} 77. Kxd5 {[%emt 0:00:01]} Rc1 {[%emt 0:00:00]} 78. Rf7 {[%emt 0:00:02]} Rc2 {[%emt 0:00:01]} 79. Re7 {[%emt 0:00:01]} Rc1 {[%emt 0:00:00]} 80. Rf7 {[%emt 0:00:01]} Rc2 {[%emt 0:00:01]} 81. Re7 {[%emt 0:00:01]} Rc1 {[%emt 0:00:00]} 1/2-1/2

[Event "CCT Julius Baer-D3 2024"]
[Site "Online"]
[Date "2024.09.28"]
[Round "52"]
[White "Bosiocic, Marin"]
[Black "Santos Latasa, Jaime"]
[Result "1-0"]
[ECO "A30"]
[WhiteElo "2555"]
[BlackElo "2624"]
[Annotator "TA"]
[PlyCount "95"]
[EventDate "2024.09.25"]
[EventType "swiss"]
[EventCountry "NET"]
[SourceTitle "playchess.com"]
[Source "ChessBase"]
[SourceQuality "1"]
[TimeControl "600+2"]

{[%evp 21,94,33,28,19,39,8,9,14,15,0,37,23,93,85,110,85,85,96,136,135,207,202,191,204,205,195,176,127,179,145,145,76,106,95,141,0,246,-62,-58,-70,-56,-42,8,8,8,-20,0,0,0,0,0,0,0,-93,0,0,0,0,0,0,0,0,18,0,104,107,243,254,331,318,29997,29998,29998,29999,29999]} 1. Nf3 {[%emt 0:00:02]} Nf6 {[%emt 0:00:04]} 2. g3 {[%emt 0:00:03]} c5 {[%emt 0:00:03]} 3. c4 {[%emt 0:00:04]} b6 {[%emt 0:00:02]} 4. Bg2 {[%emt 0:00:02]} Bb7 {[%emt 0:00:00]} 5. O-O {[%emt 0:00:01]} g6 {[%emt 0:00:01]} 6. d4 {[%emt 0:00:01]} cxd4 {[%emt 0:00:01]} 7. Qxd4 {[%emt 0:00:02]} Bg7 {[%emt 0:00:03]} 8. Nc3 {[%emt 0:00:02]} d6 {[%emt 0:00:05]} 9. Be3 {[%emt 0:00:05]} Nbd7 {[%emt 0:00:02]} 10. Rac1 {[%emt 0:00:10]} Rc8 {[%emt 0:00:02]} 11. b3 {[%emt 0:00:08]} O-O {[%emt 0:00:05][%cal Of6e4]} 12. Qh4 {[%emt 0:00:03]} Re8 {[%emt 0:00:02]} 13. g4 {[%emt 0:00:52]} a6 {[%emt 0:00:07]} 14. g5 {[%emt 0:00:03] The position is equal.} Nh5 {[%emt 0:00:02][%cal Ob6b5]} 15. Nd5 {[%emt 0:00:32]} b5 {[%emt 0:00:14]} 16. Nd4 $1 {[%emt 0:00:19][%cal Od5e7] Strongly threatening Nxe7+!} e5 {[%emt 0:01:59] [#]} (16... Nc5 $11 {keeps the balance.}) 17. Nf5 $1 $16 {[%emt 0:00:05] White has more active pieces.} gxf5 {[%emt 0:00:03]} (17... Bxd5 18. Bxd5) 18. Qxh5 {[%emt 0:00:02]} bxc4 {[%emt 0:00:02]} 19. bxc4 {[%emt 0:00:04]} (19. Rxc4 Rxc4 20. bxc4 e4 $11) 19... f4 {[%emt 0:00:03]} 20. Bd2 {[%emt 0:00:17]} Nf8 {[%emt 0:00:29] [#]} (20... Nc5 $16 21. Rfd1 Re6) 21. Nf6+ $1 {[%emt 0:00:56][%mdl 512]} Bxf6 {[%emt 0:00:02]} 22. Bxb7 {[%emt 0:00:02]} Bg7 {[%emt 0:00:36]} 23. Bxc8 {[%emt 0:00:02]} (23. Bxa6 $6 Ra8 24. Bb7 (24. Bb5 Re6 $16) 24... Rxa2 $16) 23... Qxc8 {[%emt 0:00:01]} 24. e3 {[%emt 0:00:12]} ({Better is} 24. Bb4 $18) 24... Ne6 {[%emt 0:00:07]} (24... Qf5 $16 25. h3 Ne6) 25. exf4 {[%emt 0:00:04]} exf4 {[%emt 0:00:01]} 26. Rfe1 {[%emt 0:00:02]} (26. Bc3 $142) 26... Qc6 {[%emt 0:00:04]} 27. Qg4 {[%emt 0:00:24]} Be5 {[%emt 0:00:06]} (27... Bb2 $142) 28. Bc3 {[%emt 0:00:37]} (28. Qg2 $16 Qa4 (28... Qxg2+ 29. Kxg2 Rc8 30. h4 $18) 29. Qd5) 28... Qc5 {[%emt 0:00:02]} (28... Bxc3 $1 $11 {and Black is okay.} 29. Rxc3 Nd4 30. Rxe8+ Qxe8) 29. Re4 $2 {[%emt 0:00:17]} (29. Qf5 $18) 29... Qa3 $1 $15 {[%emt 0:00:33][%csl LRa2,LRc1,LRc3]} 30. Bd2 {[%emt 0:00:21]} Qd3 $1 {[%emt 0:00:03]} 31. Qe2 {[%emt 0:00:09]} Qxe2 {[%emt 0:00:10]} (31... Qh3 $15 32. Rxe5 dxe5 (32... f3 33. Qf1 $15) 33. Qxe5 Qg4+ 34. Kh1 Qf3+ 35. Kg1 Qg4+ 36. Kh1 Qf3+ 37. Kg1 Qg4+) 32. Rxe2 $11 {[%emt 0:00:07] And now Bc3 would win.} Nd4 $1 $132 {[%emt 0:00:01][%mdl 2048] Black is fighting back} 33. Rce1 {[%emt 0:00:13]} Rc8 {[%emt 0:00:10][%cal Oc8c4]} 34. Rxe5 $1 {[%emt 0:01:01]} dxe5 {[%emt 0:00:07][%mdl 4096] Endgame. KRB-KRN} 35. Kg2 {[%emt 0:00:02] Wards off Nf3} Rc5 {[%emt 0:00:13][%cal Od4c6]} 36. Re4 {[%emt 0:00:08][%cal Od2f4]} Nc6 {[%emt 0:00:22][%cal Oh7h6]} 37. Kf3 {[%emt 0:00:07] [#]} (37. a3 $11) 37... h6 $1 {[%emt 0:00:06]} 38. h4 $1 {[%emt 0:00:02]} hxg5 {[%emt 0:00:05]} 39. hxg5 {[%emt 0:00:01]} Kg7 {[%emt 0:00:00]} 40. Kg4 {[%emt 0:00:07]} Kg6 {[%emt 0:00:03]} 41. Bc3 {[%emt 0:00:03]} a5 {[%emt 0:00:24]} (41... f3 $5) 42. a3 {[%emt 0:00:15]} Kg7 {[%emt 0:01:02]} (42... f3 $11 {remains equal.}) 43. Rxf4 $16 {[%emt 0:00:17]} Kf8 {[%emt 0:00:04] Black cannot hold the game after this.} (43... Kg6 $16 44. Re4 Nd4) 44. Re4 $18 {[%emt 0:00:01]} Kg8 {[%emt 0:00:05]} 45. f4 {[%emt 0:00:03]} exf4 {[%emt 0:00:05]} (45... f6 $18 46. gxf6 exf4 47. Kxf4 Kf8) 46. Re8+ {[%emt 0:00:03] White mates.} Kh7 {[%emt 0:00:02]} 47. Rh8+ {[%emt 0:00:01]} Kg6 {[%emt 0:00:00]} 48. Rh6# {[%emt 0:00:01] Weighted Error Value: White=0.36/Black=0.59.  Loses game:     	---       	Black=1      Missed win:     	White=1     	---        Mistake:       	White=4     	Black=9      Inaccurate:     	White=2     	Black=4      OK:         	White=9     	Black=9      Best:        	White=5     	Black=1      Strong:       	White=3     	Black=3      Brilliant:      	White=1     	---} 1-0